{"text_format":"1","workbook":"xlsx","n_sheets":3,"sheets":["Perdata","Personel Nak.Bild.","Sürekli Görev"],"not_rendered":{"charts":0,"images":0,"macros":1,"external_links":4,"defined_names":22,"comments":2,"pivot_tables":0},"unopened":[],"bounds":{"document_bytes":16777216,"sheet_cells":100000,"rows_first":2000,"rows_last":500,"rows_between":2000,"halvings":0,"cell_chars":16384,"cell_head_chars":4096},"cells_cut":0,"cells_raw":0,"read":"whole","date_system":"1900"}

{"sheet":"Perdata","index":0,"n_rows":23,"n_cols":34,"rows_kept":23,"cut":false,"hidden":false,"merged":[[3,3,3,4],[2,26,2,27],[3,26,3,27],[1,12,2,13],[1,14,2,19],[6,0,7,32],[3,6,3,11],[0,0,0,2],[1,0,1,2],[0,3,0,4],[1,3,1,4],[3,0,3,1],[0,24,0,25],[2,24,2,25],[3,24,3,25],[0,26,0,27],[2,0,2,2],[0,5,0,11],[1,6,1,11],[2,6,2,11],[2,3,2,4]]}
["İl:",null,null,"Osmaniye",null,"2023 Yevmiyeler",null,null,null,null,null,null,null,null,null,null,null,null,null,null,null,null,"Hazırlayan","Gerçekleştireme Görevlisi","Harcama Yetkilisi",null,"Saymanlık Müdürü",null,null,null,null,null,"İkametgah adresi değişmediğinden yolluk ödenmemiştir."]
["İlçe :",null,null,"Düziçi",null,"5-15",400,null,null,null,null,null,"PERSONEL NAKİL BİLD.",null,"Sürekli Görev Yolluk Bild.",null,null,null,null,null,null,null,null,null,null,null,null,null,null,null,null,null,"Yolluksuz Atama"]
["Okul/Kurum Adı :",null,null,"İlçe Milli Eğitim Müdürlüğü",null,"4-1",405,null,null,null,null,null,null,null,null,null,null,null,null,null,null,null,"……….","Mustafa ŞEKER","Cuma SAĞIR",null,"Kamer CAN",null,null,null,null,null,"Yolluk Almıştır"]
[null,null,null,null,null,"3600",420,null,null,null,null,null,null,null,null,null,null,null,null,null,null,null,"Okul Müdürü","Şube Müdürü","İlçe Milli Eğitim Müdürü",null,"Malmüdürü",null,null,null,null,null,"İkametgah adresi değişmediğinden 1 yevmiye ve yol ücreti almıştır."]
[null,null,null,null,null,null,null,null,null,null,null,null,null,null,null,null,null,null,null,null,10,null,null,null,null,null,null,null,null,null,null,null,"Yolluk Almamıştır"]
[]
["PERSONEL NAKİL BİLDİRİMİ LİSTESİ"]
[]
[1,2,3,4,5,6,7,8,9,10,11,12,13,14,15,16,17,18,19,20,21,22,23,24,25,26,27,28,29,30,31,32,33]
["S.No:","T.C. Kimlik No.","Say2000i","ADI SOYADI","RÜTBE/\nUNVAN ","Yeni Ünvanı","KADRO DERECE","Kademe","Ek Göstergesi","Yeni Kadro/Derece","Yeni Kademe","Kurum Sicil","Emekli Sicil","Atanma Tarihi","Ayrılış Tarihi","Öğrenim Durumu","Yıllık İzin Durumu","Sağlık Rap Top. (heyet hariç)","Kıdem Aylığına Esas Hizmet Süresi","Yeni Görev\nYerinde Aylığa\nHak Kazandığı Tarih","15 Gün İçinde Hareket Etmediği Taktirde Geçikme Nedeni","Yolluk Durumu","Giyecek Yardımı","Borcuna Ait Bilgiler","Medeni Hali","Sendika","Banka Prmosyonu\nAlmamıştır/Ne zmana kadar aldığı","En Son Eğitime Hazırlık Ödeneği aldığı Eğitim Öğretim Yılı","Yolluğa Esas Mesafe","Yol Ücreti","Atandığı İl","Atandığı İlçe","Atandığı Okul/Kurum"]
[{"$f":"IF(D11>0,1,0)","v":1},1111,1,"aaaaa","Öğretmen","Öğretmen",4,4,null,4,4,"111",1111,"11/12/2020","07/01/2021","Lisans","-","0","41 Yıl 9 Ay","15/02/2021","Etmesi söylendi",3,"--","Bilinen Borcu Yoktur","Bekar","Eğitim Bir Sen - 110827","15/03/2025 tarihine kadar banka promosyonu almıştır.","2023-2024 Eğitime Hazırlık Ödeneğini almıştır.",71,45,"Osmaniye","Düziçi","A Okulu",1]
[{"$f":"IF(D12>0,A11+1,0)","v":2},2222222,2,"bbbb","Öğretmen","Öğretmen",7,3,3600,7,3,0,null,"20/01/2017","26/01/2017","Lisans","x","0","4 Yıl 5 Ay","15/02/2017","Etmesi söylendi",1,"Yararlanmıyor","Bilinen Borcu Yoktur","Evli- Eşi Çalışıyor 1 Çocuk","Eğitim Bir Sen - 383989","15/03/2025 tarihine kadar banka promosyonu almıştır.","2023-2024 Eğitime Hazırlık Ödeneğini almıştır.",50,5,"Osmaniye","Bahçe","B Okulu",2]
[3]
[{"$f":"IF(D14>0,A13+1,0)","v":0}]
[0]
[0]
[0]
[0]
[0]
[0,null,null,null,null,null,null,null,null,null,null,null,null,null,null,null,null,null,null,null,null,null,null,null,null,null,null,null,null,null,null,null,null,10]
[null,null,null,null,null,null,null,null,null,null,null,null,null,null,null,null,null,null,null,null,null,null,null,null,null,null,null,null,null,null,null,null,null,11]
[null,null,null,null,null,null,null,null,null,null,null,null,null,null,null,null,null,null,null,null,null,null,null,null,null,null,null,null,null,null,null,null,null,12]
[null,null,null,null,null,null,null,null,null,null,null,null,null,null,null,null,null,null,null,null,null,6,null,null,null,null,null,null,null,null,null,null,null,13]

{"sheet":"Personel Nak.Bild.","index":1,"n_rows":36,"n_cols":19,"rows_kept":36,"cut":false,"hidden":false,"merged":[[0,18,0,19],[4,0,4,3],[3,0,3,3],[3,4,3,16],[8,13,8,16],[0,0,0,16],[1,0,1,3],[1,4,1,10],[1,13,1,16],[2,0,2,3],[2,4,2,16],[4,4,4,16],[5,18,6,19],[6,13,6,16],[6,6,6,10],[6,0,6,3],[24,0,24,3],[24,4,24,16],[12,0,12,3],[12,4,12,16],[13,0,13,3],[13,4,13,16],[14,0,14,3],[14,4,14,16],[22,0,22,3],[22,4,22,16],[20,0,20,3],[20,4,20,16],[21,0,21,3],[21,4,21,16],[23,0,23,3],[23,4,23,16],[25,0,26,3],[25,4,25,7],[25,8,25,11],[25,12,25,16],[26,5,26,6],[26,12,26,14],[30,3,30,5],[30,6,30,10],[30,11,30,16],[29,0,29,16],[27,0,27,16],[28,0,28,16],[31,3,31,5],[31,6,31,10],[31,11,31,16],[32,3,32,5],[32,6,32,10],[32,11,32,16],[33,3,33,5],[33,6,33,10],[33,11,33,16],[36,3,36,5],[36,6,36,10],[36,11,36,16],[34,0,34,1],[34,3,34,5],[34,6,34,10],[34,11,34,16],[35,3,35,5],[35,6,35,10],[35,11,35,16],[5,13,5,16],[5,6,5,10],[5,0,5,3],[17,0,17,3],[17,4,17,16],[10,0,10,3],[10,4,10,16],[7,0,7,3],[7,6,7,10],[7,13,7,16],[8,0,8,3],[8,6,8,10],[9,4,9,16],[9,0,9,3],[18,0,18,3],[18,4,18,16],[19,0,19,3],[19,4,19,16],[11,0,11,3],[15,0,15,3],[15,4,15,16],[16,0,16,3],[16,4,16,16]]}
["PERSONEL NAKİL BİLDİRİMİ",null,null,null,null,null,null,null,null,null,null,null,null,null,null,null,null,null,"GİRİŞ"]
["Adı Soyadı",null,null,null,1,null,null,null,null,null,null,"Ünvanı",":",{"$f":"VLOOKUP(E2,Perdata!A11:M23,5,0)","v":"Öğretmen"}]
["Yeni Muhasebe Bilişim Sistemi Personel No",null,null,null,{"$f":"VLOOKUP(E2,Perdata!A11:AI23,3,0)","v":1}]
["T.C.Kimlik Numarası",null,null,null,{"$f":"VLOOKUP(E2,Perdata!A11:AT23,2,0)","v":1111}]
["Adı Soyadı",null,null,null,{"$f":"VLOOKUP(E2,Perdata!A11:AI23,4,0)","v":"aaaaa"}]
["Sicil Numarası",null,null,null,"Kurum",":",{"$f":"VLOOKUP(E2,Perdata!A11:Y23,12,0)","v":"111"},null,null,null,null,"Emekli",":",{"$f":"VLOOKUP(E2,Perdata!A11:Y23,13,0)","v":1111},null,null,null,null,"Sürekli Görev Yolluğu"]
["Kurumu (Eski/Yeni Görev Yerleri)",null,null,null,"Eski",":",{"$f":"CONCATENATE(Perdata!D1,\" \",Perdata!D2,\" \",Perdata!D3)","v":"Osmaniye Düziçi İlçe Milli Eğitim Müdürlüğü"},null,null,null,null,"Yeni",":",{"$f":"CONCATENATE(VLOOKUP(E2,Perdata!A11:AT23,31,0),\" \",VLOOKUP(E2,Perdata!A11:AT23,32,0),\" \",VLOOKUP(E2,Perdata!A11:AT23,33,0))","v":"Osmaniye Düziçi A Okulu"}]
["Memuriyeti (Görev Ünvanları)",null,null,null,"Eski",":",{"$f":"VLOOKUP(E2,Perdata!A11:Y23,5,0)","v":"Öğretmen"},null,null,null,null,"Yeni",":",{"$f":"VLOOKUP(E2,Perdata!A11:Y23,6,0)","v":"Öğretmen"}]
["Derece ve Kademesi",null,null,null,"Eski",":",{"$f":"CONCATENATE(VLOOKUP(E2,Perdata!A11:AT23,7,0),\"-\",VLOOKUP(E2,Perdata!A11:AT23,8,0))","v":"4-4"},null,null,null,null,"Yeni",":",{"$f":"CONCATENATE(VLOOKUP(E2,Perdata!A11:AT23,10,0),\"-\",VLOOKUP(E2,Perdata!A11:AT23,11,0))","v":"4-4"}]
["Atama Tarihi",null,null,null,{"$f":"VLOOKUP(E2,Perdata!A11:AT23,14,0)","v":"11/12/2020"}]
["Tebliğ Tarihi",null,null,null,{"$f":"VLOOKUP(E2,Perdata!A11:AT23,15,0)","v":"07/01/2021"}]
["Eski Memuriyetinden Ayrılış Tarihi",null,null,null,{"$f":"VLOOKUP(E2,Perdata!A11:AT23,15,0)","v":"07/01/2021"}]
["Öğrenim Durumu",null,null,null,"Yeni Muhasebe Bilişim Sisteminde Kayıtlıdır"]
["Yıllık İzin Durumu",null,null,null,"Millî Eğitim Bakanlığı Bilişim Sistemleri MEBBİS'te Kayıtlıdır"]
["Kıdem Aylığına Esas Hizmet Süresi",null,null,null,"Yeni Muhasebe Bilişim Sisteminde Kayıtlıdır"]
["Süregelen Gelir Vergisi Toplamı",null,null,null,"Yeni Muhasebe Bilişim Sisteminde Kayıtlıdır"]
["Almış Olduğu Sağlık Raporlarının Yıl İçindeki Toplam Süresi (Heyet Raporu Hariç)",null,null,null,"Millî Eğitim Bakanlığı Bilişim Sistemleri MEBBİS'te Kayıtlıdır"]
["Yabancı Dil Tazminatından Yararlanıp Yararlanmadığı, Yararlanıyorsa Grubu",null,null,null,"Yeni Muhasebe Bilişim Sisteminde Kayıtlıdır"]
["Giyecek Yardımı Alıp Almadığı, Almışsa Tutarı",null,null,null,{"$f":"VLOOKUP(E2,Perdata!A11:AT23,23,0)","v":"--"}]
["15 Gün İçinde Hareket Etmediği Taktirde Geçikme Nedeni",null,null,null,"Etmesi söylendi"]
["Yeni Görev Yerinde Aylığa Hak Kazandığı Tarih",null,null,null,{"$f":"CONCATENATE(VLOOKUP(E2,Perdata!A11:AT23,20,0),\"'dan  itibaren Maaş, Sos.Yardım ve Tazminatlara müstehaktır.\")","v":"15/02/2021'dan  itibaren Maaş, Sos.Yardım ve Tazminatlara müstehaktır."}]
["Medeni Hali",null,null,null,{"$f":"VLOOKUP(E2,Perdata!A11:AT23,25,0)","v":"Bekar"}]
["Sendika",null,null,null,{"$f":"VLOOKUP(E2,Perdata!A11:AT23,26,0)","v":"Eğitim Bir Sen - 110827"}]
["Borçlu İse Borcuna Ait Bilgiler",null,null,null,{"$f":"VLOOKUP(E2,Perdata!A11:AT23,24,0)","v":"Bilinen Borcu Yoktur"}]
["Şahsi ve Aile Yolluğunun alınıp alınmadığı, alınmışsa tutarı.",null,null,null,{"$f":"IF((VLOOKUP(E2,Perdata!A11:AG23,22,0)=1),\"İkametgah adresi değişmediğinden yolluk ödenmemiştir.\",IF((VLOOKUP(E2,Perdata!A11:AG23,22,0)=2),\"Yolluksuz Atama\",IF((VLOOKUP(E2,Perdata!A11:AG23,22,0)=4),\"İkametgah Adresi Değişmediğinden 1 Yevmiye v eYol Ücreti Almıştır.\",IF((VLOOKUP(E2,Perdata!A11:AG23,22,0)=5),\"Yolluk Almamıştır.\",IF((VLOOKUP(E2,Perdata!A11:AG23,22,0)=3),(CONCATENATE(Perdata!AG3,\"-\",'Sürekli Görev'!R4,\"TL\")))))))","v":"Yolluk Almıştır-9987,75TL"}]
["Lojmanda Oturduğu Süre, Yıl, Ay, Gün olarak",null,null,null,"İlişik Kestiği Kadroda                           Gün        Ay       Yıl ",null,null,null,"İlişik Kestiği Kadroda                       Gün     Ay     Yıl ",null,null,null,"T  O  P  L  A  M                          Gün      Ay          Yıl "]
[]
[{"$f":"VLOOKUP(E2,Perdata!A11:AG23,27,0)","v":"15/03/2025 tarihine kadar banka promosyonu almıştır."}]
[{"$f":"VLOOKUP(E2,Perdata!A11:AT23,28,0)","v":"2023-2024 Eğitime Hazırlık Ödeneğini almıştır."}]
[]
[null,null,{"$f":"Perdata!W1","v":"Hazırlayan"},{"$f":"Perdata!X1","v":"Gerçekleştireme Görevlisi"},null,null,{"$f":"Perdata!Y1","v":"Harcama Yetkilisi"},null,null,null,null,{"$f":"Perdata!AA1","v":"Saymanlık Müdürü"}]
[null,null,{"$f":"TODAY()","v":"2024-01-18"},{"$f":"$C$32","v":"2024-01-18"},null,null,{"$f":"$C$32","v":"2024-01-18"},null,null,null,null,{"$f":"$C$32","v":"2024-01-18"}]
["Adı- Soyadı",":",{"$f":"Perdata!W3","v":"………."},{"$f":"Perdata!X3","v":"Mustafa ŞEKER"},null,null,{"$f":"Perdata!Y3","v":"Cuma SAĞIR"},null,null,null,null,{"$f":"Perdata!AA3","v":"Kamer CAN"}]
["Ünvanı",":",{"$f":"Perdata!W4","v":"Okul Müdürü"},{"$f":"Perdata!X4","v":"Şube Müdürü"},null,null,{"$f":"Perdata!Y4","v":"İlçe Milli Eğitim Müdürü"},null,null,null,null,{"$f":"Perdata!AA4","v":"Malmüdürü"}]
[null,null,0,"00:00:00",null,null,"00:00:00",null,null,null,null,0]
["İmzası",":"]

{"sheet":"Sürekli Görev","index":2,"n_rows":35,"n_cols":41,"rows_kept":35,"cut":false,"hidden":false,"merged":[[0,16,1,16],[1,0,1,1],[1,2,1,4],[1,5,1,6],[1,9,1,11],[0,0,0,1],[0,2,0,4],[0,5,0,6],[0,7,0,8],[0,9,0,12],[3,0,3,2],[2,0,2,2],[2,5,2,6],[2,8,2,11],[4,0,4,2],[4,3,4,4],[3,9,3,10],[3,11,3,12],[3,3,3,4],[5,0,5,2],[5,3,5,4],[4,5,7,10],[4,11,4,12],[4,13,4,16],[6,3,6,4],[5,11,6,15],[5,16,6,16],[7,0,7,2],[7,3,7,4],[7,11,7,15],[6,0,6,2],[11,3,11,4],[11,9,11,10],[12,3,12,4],[12,9,12,10],[8,0,10,2],[8,3,10,4],[8,5,10,5],[8,6,8,8],[8,9,10,10],[9,6,10,6],[9,7,10,7],[9,8,10,8],[13,3,13,4],[13,9,13,10],[14,3,14,4],[14,9,14,10],[15,3,15,4],[15,9,15,10],[16,3,16,4],[16,9,16,10],[17,3,17,4],[17,9,17,10],[18,3,18,4],[18,9,18,10],[19,3,19,4],[19,9,19,10],[20,3,20,4],[20,9,20,10],[21,3,21,4],[21,9,21,10],[22,3,22,4],[22,9,22,10],[23,3,23,4],[23,9,23,10],[24,3,24,4],[24,9,24,10],[25,0,25,5],[25,9,25,10],[33,10,33,15],[34,10,34,15],[35,10,35,15],[26,0,26,16],[27,2,27,4],[27,5,27,15],[29,10,29,15],[30,10,30,15],[31,10,31,15],[32,10,32,15],[12,29,13,33],[15,29,16,33],[9,12,9,15],[10,12,10,14],[10,27,10,34],[5,27,6,34],[8,27,8,34],[9,27,9,34],[3,13,3,16],[8,11,8,15],[8,16,10,16]]}
["ESKİ KURUMU",null,{"$f":"'Personel Nak.Bild.'!G7","v":"Osmaniye Düziçi İlçe Milli Eğitim Müdürlüğü"},null,null,"ATAMA TARİHİ",null,{"$f":"'Personel Nak.Bild.'!E10:H10","v":"00:00:00"},null,"MESAFE ÇARPANI %",null,null,null,null,null,"Tam Yolluk Alacak","Virgülden Sonra\nBasamak Sayısı",null,null,{"$f":"CONCATENATE(U9,U8,T8,U7,U10,U8,)","v":"Mustafa KAPGI 09/01              "},null,null,{"$f":"CONCATENATE(T17,T18)","v":{"$error":"#NAME?"}}]
["ATANDIĞI YER",null,{"$f":"'Personel Nak.Bild.'!N7","v":"Osmaniye Düziçi A Okulu"},null,null,"Gidilen Mesafe",null,{"$f":"IF((VLOOKUP('Personel Nak.Bild.'!E2,Perdata!A11:AG23,22,0)=4),0,VLOOKUP('Personel Nak.Bild.'!E2,Perdata!A11:AT23,29,0))","v":71},"Kilometre","PERSONEL İÇİN",null,null,5,null,null,"Yarım Yolluk",null,null,null,1,null,null,"den","ve","ne","atanan"]
["SABİT UNSUR KATSAYISI",null,null,"KENDİSİ",20,"AİLE FERDİ",null,10,"EŞİ MEMUR PERSONEL İÇİN",null,null,null,2.5,null,null,null,3,null,null,null,"        ",null,"aile fertlerine ait yurt içi sürekli görev yolluğu olarak tahakkuk eden ",null,null,null,null,null,null,null,3]
["T.C.Kimlik No",null,null,{"$f":"VLOOKUP('Personel Nak.Bild.'!E2,Perdata!A11:AT24,2,0)","v":1111},null,null,null,null,null,null,null,"Dairesi           :",null,{"$f":"Perdata!D3","v":"İlçe Milli Eğitim Müdürlüğü"},null,null,null,{"$f":"ROUND(Q26,2)","v":9987.75}]
["Adı Soyadı                               :",null,null,{"$f":"VLOOKUP('Personel Nak.Bild.'!E2,Perdata!A11:AT23,4,0)","v":"aaaaa"},null,"YURTİÇİ SÜREKLİ GÖREV YOLLUĞU BİLDİRİMİ",null,null,null,null,null,"Bütçe Yılı       :",null,{"$f":"X11","v":2024}]
["Ünvanı                                     :",null,null,{"$f":"VLOOKUP('Personel Nak.Bild.'!E2,Perdata!A11:AT23,5,0)","v":"Öğretmen"},null,null,null,null,null,null,null,"Önceden Avans Almışsa Alındığı Saymanlık ve Tarihi",null,null,null,null,"Almadı",null,null,null,null,null,null,null,null,null,null," => İlgilinin S.G.Y.nu tam mı yarım mı alacağı mutlaka \n      seçilmelidir."]
["Aylık Kadro Derecesi ve     Ek Göstergesi                              ",null,null,{"$f":"CONCATENATE(VLOOKUP('Personel Nak.Bild.'!E2,Perdata!A11:AT23,7,0),\" - \",VLOOKUP('Personel Nak.Bild.'!E2,Perdata!A11:AT23,9,0))","v":"4 - "},null,null,null,null,null,null,null,null,null,null,null,null,null,null,null,"/","             ",null,null,null,null,null,null,null,null,null,null,null,null,null,null,null,null,null,null,null,"."]
["Gündeliği                                :",null,null,{"$f":"IF((VLOOKUP('Personel Nak.Bild.'!E2,Perdata!A11:AG23,22,0)=1),0,IF((VLOOKUP('Personel Nak.Bild.'!E2,Perdata!A11:AG23,22,0)=2),0,IF((VLOOKUP('Personel Nak.Bild.'!E2,Perdata!A11:AG23,22,0)=5),0,IF(VLOOKUP('Personel Nak.Bild.'!E2,Perdata!A11:AT23,9,0)<3600,(IF(VLOOKUP('Personel Nak.Bild.'!E2,Perdata!A11:AT23,7,0)>4,Perdata!G2,Perdata!G3)),Perdata!G4))))","v":405},null,null,null,null,null,null,null,"Atama Tarihi",null,null,null,null,{"$f":"'Personel Nak.Bild.'!E10","v":"11/12/2020"},null,null,{"$f":"CONCATENATE(T9,T7,T10)","v":"09/01"}," "]
["Nereden Nereye Gidildiği",null,null,"Adı ve Soyadı",null,"Akrabalık Derecesi","Gündelikler",null,null,"Taşıt               Ücreti                 (2)",null,"YER DEĞİŞTİRME GİDERİ",null,null,null,null,"T O P L A M                              1+2+3+4",null,null,"09","Mustafa KAPGI",null,null,null,null,null,null," => Veri girişi yapabileceğiniz hücreler renklendirilmiştir."]
[null,null,null,null,null,null,"Gün Sayısı","Yevmiye","Tutarı                  (1)",null,null,"Sabit Unsur","Değişken Unsur",null,null,null,null,null,null,"01",null,null,{"$f":"TODAY()","v":"2024-01-18"},{"$f":"MONTH(W10)","v":1}]
[null,null,null,null,null,null,null,null,null,null,null,"TL,Kr. (3)","Mesafe   Km/Mil",null,null,"Tutarı                  (4)",null,null,null,null,null,null,null,{"$f":"YEAR(W10)","v":2024}]
[{"$f":"CONCATENATE(Perdata!D1,\" \",Perdata!D2)","v":"Osmaniye Düziçi"},"-",{"$f":"CONCATENATE(VLOOKUP('Personel Nak.Bild.'!E2,Perdata!A11:AT23,31,0),\" \",VLOOKUP('Personel Nak.Bild.'!E2,Perdata!A11:AT23,32,0))","v":"Osmaniye Düziçi"},{"$f":"IF((VLOOKUP('Personel Nak.Bild.'!$E$2,Perdata!$A$11:$AG$23,22,0)=1),0,IF((VLOOKUP('Personel Nak.Bild.'!$E$2,Perdata!$A$11:$AG$23,22,0)=2),0,IF((VLOOKUP('Personel Nak.Bild.'!$E$2,Perdata!$A$11:$AG$23,22,0)=1),0,D5)))","v":"aaaaa"},null,"Kendisi",{"$f":"IF(D12=0,0,1)","v":1},{"$f":"IF(G12>0,$D$8,0)","v":405},{"$f":"H12","v":405},{"$f":"IF((VLOOKUP('Personel Nak.Bild.'!E2,Perdata!A11:AG23,30,0)=1),0,IF((VLOOKUP('Personel Nak.Bild.'!E2,Perdata!A11:AG23,30,0)=2),0,VLOOKUP('Personel Nak.Bild.'!E2,Perdata!A11:AT23,30,0)))","v":45},null,{"$f":"IF((VLOOKUP('Personel Nak.Bild.'!$E$2,Perdata!$A$11:$AG$23,22,0)=4),0,IF(G12>0,H12*$E$3,\"\"))","v":8100},{"$f":"H2","v":71},"x",{"$f":"ROUND(D8*S16/100,AE3)","v":20.25},{"$f":"M12*O12","v":1437.75},{"$f":"IF(D12=0,0,(I12+J12+L12+P12))","v":9987.75}]
[{"$f":"IF(G13>0,$A$12,\"\")","v":""},{"$f":"IF(G13>0,$B$12,\"\")","v":""},{"$f":"IF(G13>0,$C$12,\"\")","v":""},null,null,null,{"$f":"IF(COUNTA(D13),1,0)","v":0},{"$f":"IF(G13>0,$D$8,0)","v":0},{"$f":"H13","v":0},{"$f":"IF(G13>0,J12,0)","v":0},null,{"$f":"IF((VLOOKUP('Personel Nak.Bild.'!$E$2,Perdata!$A$11:$AG$23,20,0)=4),0,IF(G13>0,H13*$H$3,\"\"))","v":""},null,null,null,0,{"$f":"IF(G13>0,(I13+J13+L13+P13),0)","v":0},null,null,{"$f":"INT(Q26)","v":9987},null,null,null,null,null,null,null,null,null,"GİRİŞ"]
["","","",null,null,null,{"$f":"IF(COUNTA(D14),1,0)","v":0},0,0,null,null,{"$f":"IF((VLOOKUP('Personel Nak.Bild.'!$E$2,Perdata!$A$11:$AG$23,20,0)=4),0,IF(G14>0,H14*$H$3,\"\"))","v":""},null,null,null,0,{"$f":"IF(G14>0,(I14+J14+L14+P14),0)","v":0},null,0,{"$f":"VALUE(T15)","v":0.75}]
["","","",null,null,null,0,0,0,null,null,{"$f":"IF((VLOOKUP('Personel Nak.Bild.'!$E$2,Perdata!$A$11:$AG$23,20,0)=4),0,IF(G15>0,H15*$H$3,\"\"))","v":""},null,null,null,0,0,null,1,{"$f":"FIXED(T16,2)","v":"0,75"}]
["","","",null,null,null,0,0,0,null,null,{"$f":"IF((VLOOKUP('Personel Nak.Bild.'!$E$2,Perdata!$A$11:$AG$23,20,0)=4),0,IF(G16>0,H16*$H$3,\"\"))","v":""},null,null,null,0,0,null,{"$f":"IF(S15=1,M2,M3)","v":5},{"$f":"Q26-T13","v":0.75},null,null,null,null,null,null,null,null,null,"Personel Nakil Bild."]
["","","",null,null,null,0,0,0,{"$f":"IF(G17>0,J16,0)","v":0},null,{"$f":"IF((VLOOKUP('Personel Nak.Bild.'!$E$2,Perdata!$A$11:$AG$23,20,0)=4),0,IF(G17>0,H17*$H$3,\"\"))","v":""},null,null,null,0,0,null,null,{"$f":"IF(T13>0,CONCATENATE(Yaziyla(Q26)))","v":{"$error":"#NAME?"}}]
[{"$f":"IF(G18>0,$A$12,\"\")","v":""},{"$f":"IF(G18>0,$B$12,\"\")","v":""},{"$f":"IF(G18>0,$C$12,\"\")","v":""},null,null,null,0,null,0,0,null,{"$f":"IF((VLOOKUP('Personel Nak.Bild.'!$E$2,Perdata!$A$11:$AG$23,20,0)=4),0,IF(G18>0,H18*$H$3,\"\"))","v":""},null,null,null,0,0,null,null,{"$f":"IF(T16>0,\"u gösterir bildirimdir.\",\"nı gösterir bildirimdir.\")","v":"u gösterir bildirimdir."}]
["","","",null,null,null,0,null,0,0,null,{"$f":"IF(G19>0,H19*$H$3,0)","v":0},null,null,null,0,{"$f":"I19+J19+L19+P19","v":0}]
["","","",null,null,null,0,null,0,0,null,0,null,null,null,0,{"$f":"I20+J20+L20+P20","v":0}]
["","","",null,null,null,0,null,0,0,null,0,null,null,null,0,0]
["","","",null,null,null,0,null,0,0,null,0,null,null,null,0,0]
["","","",null,null,null,0,null,0,0,null,0,null,null,null,0,0]
["","","",null,null,null,0,null,0,0,null,0,null,null,null,0,0]
["","","",null,null,null,0,null,0,0,null,0,null,null,null,0,0]
["G E N E L  T O P L A M",null,null,null,null,null,null,null,{"$f":"SUM(I12:I25)","v":405},{"$f":"SUM(J12:J25)","v":45},null,{"$f":"SUM(L12:L25)","v":8100},null,null,null,{"$f":"SUM(P12:P25)","v":1437.75},{"$f":"SUM((Q12:Q25))","v":9987.75}]
[{"$f":"CONCATENATE('Personel Nak.Bild.'!G7,\"'ndan \",'Personel Nak.Bild.'!N7,\"'na\",\" atanan \",D5,\" ve aile fertlerine ait yurtiçi sürekli görev yolluğu olarak tahakkuk eden \",paracevir(Q26),\"'u gösterir bildirimdir.\")","v":"Osmaniye Düziçi İlçe Milli Eğitim Müdürlüğü'ndan Osmaniye Düziçi A Okulu'na atanan aaaaa ve aile fertlerine ait yurtiçi sürekli görev yolluğu olarak tahakkuk eden Dokuzbindokuzyüzseksenyedi Lira Yetmişbeş Kuruş 'u gösterir bildirimdir."},null,null,null,null,null,null,null,null,null,null,null,null,null,null,null,null,null,null,null,null,null,null,null,null,null,null,null,null,null,null,null,null,null,null,null,null,null,null,null," "]
[]
[]
[null,null,null,null,null,null,null,null,null,null,"Birim Yetkilisi (1)"]
[null,null,null,null,null,null,null,null,null,null,{"$f":"TODAY()","v":"2024-01-18"},null,null,null,null,null,{"$f":"D5","v":"aaaaa"}]
[null,null,null,null,null,null,null,null,"Adı Soyadı",":",{"$f":"Perdata!W3","v":"………."},null,null,null,null,null,{"$f":"D6","v":"Öğretmen"}]
["",null,null,null,null,null,null,null,"Ünvanı",":",{"$f":"Perdata!W4","v":"Okul Müdürü"}]
[""]
[0,null,null,null,null,null,null,null,"İmzası",":"]